[Event "RUS-chT Rapid Men 2018"]
[Site "Sochi"]
[Date "2018.10.08"]
[Round "5"]
[White "Oganian, Miran"]
[Black "Inozemtsev, Sergei"]
[Result "1-0"]
[ECO "A40"]
[WhiteElo "2435"]
[BlackElo "2310"]
[Annotator "NA RC"]
[PlyCount "73"]
[EventDate "2018.10.05"]
[EventType "swiss"]
[EventCountry "RUS"]
[SourceTitle "playchess.com"]
[Source "ChessBase"]
[SourceQuality "1"]
[TimeControl "900+10"]

1. d4 {[%emt 0:00:00]} Nf6 {[%emt 0:00:00]} 2. c4 {[%emt 0:00:00]} e6 {[%emt 0:00:00]} 3. g3 {[%emt 0:00:00]} c5 {[%emt 0:00:17]} 4. d5 {[%emt 0:00:00]} exd5 {[%emt 0:01:16]} 5. cxd5 {[%emt 0:00:00]} g6 {[%emt 0:00:11]} 6. Nc3 {[%emt 0:00:00]} Bg7 {[%emt 0:00:03]} 7. Nf3 {[%emt 0:00:00]} O-O {[%emt 0:00:06]} 8. Bg2 {[%emt 0:00:00]} Re8 {[%emt 0:00:20]} 9. O-O {[%emt 0:00:00]} d6 {[%emt 0:00:14]} 10. Bf4 {[%emt 0:00:00]} a6 {[%emt 0:00:11]} 11. a4 {[%emt 0:00:00]} Qc7 {[%emt 0:00:43]} 12. Nd2 {[%emt 0:00:10]} Nh5 {[%emt 0:00:06]} 13. Be3 {[%emt 0:00:19]} Nd7 {[%emt 0:00:03]} 14. Bf3 {[%emt 0:02:08]} Nhf6 {[%emt 0:00:32]} 15. Nc4 {[%emt 0:00:52]} Nb6 {[%emt 0:00:23]} 16. Na3 {[%emt 0:00:22]} Bh3 {[%emt 0:00:15]} 17. Re1 {[%emt 0:00:07]} Nbd7 {[%emt 0:00:22]} 18. Bf4 {[%emt 0:00:41]} Ne5 {[%emt 0:00:31]} 19. Bh1 {[%emt 0:00:39]} h6 {[%emt 0:03:26]} 20. Qc1 {[%emt 0:00:45]} Kh7 {[%emt 0:00:23]} 21. Qc2 {[%emt 0:00:02]} Rab8 {[%emt 0:00:26]} 22. Rad1 {[%emt 0:00:22]} Nfd7 {[%emt 0:01:51]} 23. Bc1 {[%emt 0:00:36]} Nf6 {[%emt 0:00:38]} 24. Bg2 {[%emt 0:00:18]} Bxg2 {[%emt 0:00:05]} 25. Kxg2 {[%emt 0:00:01]} Kg8 {[%emt 0:01:07]} 26. h3 {[%emt 0:00:05]} Re7 {[%emt 0:03:12]} 27. f4 {[%emt 0:00:31]} Ned7 {[%emt 0:00:08]} 28. e4 {[%emt 0:00:06]} Ne8 {[%emt 0:00:07]} 29. b3 {[%emt 0:00:58]} Qd8 {[%emt 0:01:14]} 30. Bb2 {[%emt 0:00:09]} Nb6 {[%emt 0:01:03]} 31. a5 {[%emt 0:00:21]} Nc8 {[%emt 0:00:01]} 32. Nc4 {[%emt 0:00:02]} Na7 {[%emt 0:00:14]} 33. e5 {[%emt 0:00:31]} Kh7 {[%emt 0:00:07]} 34. h4 {[%emt 0:00:10]} Nb5 {[%emt 0:00:05]} 35. Ne4 {[%emt 0:00:10]} Kg8 {[%emt 0:00:49]} 36. h5 {[%emt 0:00:54]} gxh5 {[%emt 0:00:18]} 37. Qe2 {[%emt 0:01:10]} 1-0

[Event "RUS-chT Rapid Men 2018"]
[Site "Sochi"]
[Date "2018.10.08"]
[Round "5"]
[White "Sergeyev, Alexander"]
[Black "Papenin, Nikolai"]
[Result "1/2-1/2"]
[ECO "C68"]
[WhiteElo "2397"]
[BlackElo "2334"]
[Annotator "NA"]
[PlyCount "90"]
[EventDate "2018.10.05"]
[EventType "swiss"]
[EventCountry "RUS"]
[SourceTitle "playchess.com"]
[Source "ChessBase"]
[SourceQuality "1"]
[TimeControl "900+10"]

1. e4 {[%emt 0:00:02]} e5 {[%emt 0:00:00]} 2. Nf3 {[%emt 0:00:03]} Nc6 {[%emt 0:00:01]} 3. Bb5 {[%emt 0:00:03]} a6 {[%emt 0:00:02]} 4. Bxc6 {[%emt 0:00:03]} dxc6 {[%emt 0:00:01]} 5. O-O {[%emt 0:00:03]} Qd6 {[%emt 0:00:26]} 6. d4 {[%emt 0:01:32]} exd4 {[%emt 0:00:25]} 7. Qxd4 {[%emt 0:00:08]} Bg4 {[%emt 0:01:20]} 8. Be3 {[%emt 0:00:53]} Bxf3 {[%emt 0:01:01]} 9. Qxd6 {[%emt 0:00:10]} cxd6 {[%emt 0:01:24]} 10. gxf3 {[%emt 0:00:01]} O-O-O {[%emt 0:00:31]} 11. Nc3 {[%emt 0:00:09]} Nf6 {[%emt 0:01:32]} 12. Rfd1 {[%emt 0:00:06]} Be7 {[%emt 0:01:42]} 13. Kf1 {[%emt 0:01:34]} Nd7 {[%emt 0:00:32]} 14. Ke2 {[%emt 0:00:36]} Kc7 {[%emt 0:01:15]} 15. Bf4 {[%emt 0:00:26]} g5 {[%emt 0:00:52]} 16. Be3 {[%emt 0:00:10]} f5 {[%emt 0:01:08]} 17. Rg1 {[%emt 0:00:22]} f4 {[%emt 0:01:31]} 18. Bd4 {[%emt 0:00:14]} Rhg8 {[%emt 0:00:23]} 19. Rg2 {[%emt 0:00:50]} Rg6 {[%emt 0:00:13]} 20. Rh1 {[%emt 0:04:17]} Rdg8 {[%emt 0:00:47]} 21. Rg4 {[%emt 0:01:01]} b5 {[%emt 0:01:10]} 22. a3 {[%emt 0:00:38]} Kd8 {[%emt 0:00:58]} 23. Nb1 {[%emt 0:00:36]} h5 {[%emt 0:00:36]} 24. Rg2 {[%emt 0:00:29]} g4 {[%emt 0:00:05]} 25. Rhg1 {[%emt 0:00:06]} Bf6 {[%emt 0:00:27]} 26. c3 {[%emt 0:01:26]} c5 {[%emt 0:00:09]} 27. Bxf6+ {[%emt 0:00:02]} Rxf6 {[%emt 0:00:00]} 28. Nd2 {[%emt 0:00:37]} Ne5 {[%emt 0:00:17]} 29. h3 {[%emt 0:00:09]} Ke7 {[%emt 0:00:25]} 30. hxg4 {[%emt 0:00:10]} hxg4 {[%emt 0:00:02]} 31. Kf1 {[%emt 0:01:02]} Rfg6 {[%emt 0:00:15]} 32. fxg4 {[%emt 0:00:12]} Nxg4 {[%emt 0:00:02]} 33. Ke2 {[%emt 0:00:03]} Kf6 {[%emt 0:00:12]} 34. Nf3 {[%emt 0:00:05]} Ne5 {[%emt 0:00:18]} 35. Rxg6+ {[%emt 0:00:02]} Rxg6 {[%emt 0:00:22]} 36. Rd1 {[%emt 0:00:20]} Ke6 {[%emt 0:00:15]} 37. Nxe5 {[%emt 0:00:09]} dxe5 {[%emt 0:00:13]} 38. Rd8 {[%emt 0:00:08]} Rg1 {[%emt 0:00:13]} 39. Ra8 {[%emt 0:00:03]} Rb1 {[%emt 0:00:07]} 40. Rxa6+ {[%emt 0:00:02]} Kd7 {[%emt 0:00:04]} 41. b4 {[%emt 0:00:01]} Rb2+ {[%emt 0:00:03]} 42. Kf3 {[%emt 0:00:08]} Rb3 {[%emt 0:00:08]} 43. bxc5 {[%emt 0:00:27]} Rxc3+ {[%emt 0:00:01]} 44. Kg4 {[%emt 0:00:01]} Rxc5 {[%emt 0:00:11]} 45. f3 {[%emt 0:00:28]} Rc3 {[%emt 0:00:07]} 1/2-1/2

[Event "RUS-chT Rapid Men 2018"]
[Site "Sochi"]
[Date "2018.10.08"]
[Round "5"]
[White "Truskavetsky, Alexandr"]
[Black "Rozum, Ivan"]
[Result "0-1"]
[ECO "A40"]
[WhiteElo "2393"]
[BlackElo "2573"]
[Annotator "ChessBase"]
[PlyCount "124"]
[EventDate "2018.10.05"]
[EventType "swiss"]
[EventCountry "RUS"]
[SourceTitle "playchess.com"]
[Source "ChessBase"]
[SourceQuality "1"]
[TimeControl "900+10"]

1. d4 {[%emt 0:00:00]} Nf6 {[%emt 0:00:00]} 2. c4 {[%emt 0:00:00]} e6 {[%emt 0:00:00]} 3. g3 {[%emt 0:00:00]} d5 {[%emt 0:00:00]} 4. Nf3 {[%emt 0:00:01]} Bb4+ {[%emt 0:00:00]} 5. Bd2 {[%emt 0:00:04]} Bd6 {[%emt 0:00:00]} 6. Bg2 {[%emt 0:00:15]} O-O {[%emt 0:00:04]} 7. O-O {[%emt 0:00:04]} c6 {[%emt 0:00:03]} 8. Bg5 {[%emt 0:00:34]} Nbd7 {[%emt 0:00:18]} 9. Nc3 {[%emt 0:00:59]} h6 {[%emt 0:00:45]} 10. Bxf6 {[%emt 0:00:03]} Nxf6 {[%emt 0:00:02]} 11. Nd2 {[%emt 0:01:49]} Bc7 {[%emt 0:03:40]} 12. e4 {[%emt 0:00:47]} dxe4 {[%emt 0:00:55]} 13. Ndxe4 {[%emt 0:00:03]} Nxe4 {[%emt 0:00:02]} 14. Nxe4 {[%emt 0:01:48]} e5 {[%emt 0:00:01]} 15. d5 {[%emt 0:00:32]} cxd5 {[%emt 0:00:02]} 16. cxd5 {[%emt 0:00:13]} Bb6 {[%emt 0:00:04]} 17. Qb3 {[%emt 0:00:47]} Bd4 {[%emt 0:00:22]} 18. Nc3 {[%emt 0:02:24]} Qb6 {[%emt 0:00:25]} 19. Qxb6 {[%emt 0:01:38]} axb6 {[%emt 0:00:07]} 20. Rfd1 {[%emt 0:00:28]} Bd7 {[%emt 0:00:38]} 21. Rd2 {[%emt 0:02:22]} Rfd8 {[%emt 0:00:14]} 22. Ne2 {[%emt 0:00:03]} Bc5 {[%emt 0:00:04]} 23. a3 {[%emt 0:00:01]} Bd6 {[%emt 0:02:00]} 24. Nc3 {[%emt 0:00:24]} f5 {[%emt 0:00:02]} 25. Re1 {[%emt 0:01:43]} Rac8 {[%emt 0:00:13]} 26. Bf1 {[%emt 0:00:05]} Rc5 {[%emt 0:00:06]} 27. f3 {[%emt 0:00:39]} Kf7 {[%emt 0:00:05]} 28. Bd3 {[%emt 0:00:03]} g6 {[%emt 0:00:19]} 29. Kg2 {[%emt 0:00:01]} Kf6 {[%emt 0:00:42]} 30. Rf2 {[%emt 0:00:02]} Re8 {[%emt 0:00:47]} 31. Rfe2 {[%emt 0:00:05]} Re7 {[%emt 0:00:01]} 32. h4 {[%emt 0:00:24]} h5 {[%emt 0:00:20]} 33. Bb1 {[%emt 0:00:09]} Rc8 {[%emt 0:00:19]} 34. Bd3 {[%emt 0:00:05]} Bxa3 {[%emt 0:00:38]} 35. d6 {[%emt 0:00:05]} Bxd6 {[%emt 0:00:48]} 36. Nd5+ {[%emt 0:00:01]} Kf7 {[%emt 0:00:04]} 37. Nxe7 {[%emt 0:00:46]} Kxe7 {[%emt 0:00:01]} 38. Rc2 {[%emt 0:01:18]} Bc6 {[%emt 0:00:02]} 39. b4 {[%emt 0:00:11]} b5 {[%emt 0:00:29]} 40. Rb1 {[%emt 0:00:24]} Ra8 {[%emt 0:00:43]} 41. Kf2 {[%emt 0:00:16]} Ra3 {[%emt 0:00:06]} 42. Be2 {[%emt 0:00:01]} e4 {[%emt 0:00:30]} 43. f4 {[%emt 0:00:15]} e3+ {[%emt 0:00:02]} 44. Kf1 {[%emt 0:00:10]} Be4 {[%emt 0:00:02]} 45. Rbc1 {[%emt 0:00:06]} Bxc2 {[%emt 0:00:15]} 46. Rxc2 {[%emt 0:00:01]} Rb3 {[%emt 0:00:34]} 47. Bxb5 {[%emt 0:00:01]} Rxb4 {[%emt 0:00:02]} 48. Bd3 {[%emt 0:00:09]} b6 {[%emt 0:00:26]} 49. Ke2 {[%emt 0:00:01]} Bc5 {[%emt 0:00:01]} 50. Ra2 {[%emt 0:00:07]} Kd6 {[%emt 0:00:04]} 51. Kf3 {[%emt 0:00:13]} Rb3 {[%emt 0:00:04]} 52. Be2 {[%emt 0:00:03]} Rb1 {[%emt 0:01:34]} 53. Ra8 {[%emt 0:00:03]} b5 {[%emt 0:00:21]} 54. Rg8 {[%emt 0:00:15]} b4 {[%emt 0:00:02]} 55. Rxg6+ {[%emt 0:00:01]} Kd5 {[%emt 0:00:01]} 56. Rf6 {[%emt 0:00:17]} b3 {[%emt 0:00:04]} 57. Rxf5+ {[%emt 0:00:02]} Kd4 {[%emt 0:00:01]} 58. Re5 {[%emt 0:00:35]} b2 {[%emt 0:00:20]} 59. Rxe3 {[%emt 0:00:09]} Rd1 {[%emt 0:00:38]} 60. Re4+ {[%emt 0:00:18]} Kd5 {[%emt 0:00:13]} 61. Bc4+ {[%emt 0:00:11]} Kd6 {[%emt 0:00:04]} 62. Ba2 {[%emt 0:00:31]} Ra1 {[%emt 0:00:02]} 0-1

[Event "RUS-chT Rapid Men 2018"]
[Site "Sochi"]
[Date "2018.10.08"]
[Round "5"]
[White "Tekeyev, Zaur"]
[Black "Sychev, Klementy"]
[Result "0-1"]
[ECO "B51"]
[WhiteElo "2392"]
[BlackElo "2534"]
[Annotator "ChessBase"]
[PlyCount "88"]
[EventDate "2018.10.05"]
[EventType "swiss"]
[EventCountry "RUS"]
[SourceTitle "playchess.com"]
[Source "ChessBase"]
[SourceQuality "1"]
[TimeControl "900+10"]

1. e4 {[%emt 0:00:00]} c5 {[%emt 0:00:00]} 2. Nf3 {[%emt 0:00:00]} d6 {[%emt 0:00:00]} 3. Bb5+ {[%emt 0:00:11]} Nd7 {[%emt 0:00:23]} 4. a4 {[%emt 0:00:27]} Ngf6 {[%emt 0:00:07]} 5. Nc3 {[%emt 0:00:01]} g6 {[%emt 0:00:20]} 6. a5 {[%emt 0:00:06]} Bg7 {[%emt 0:00:36]} 7. a6 {[%emt 0:00:09]} O-O {[%emt 0:00:07]} 8. O-O {[%emt 0:00:04]} Qb6 {[%emt 0:00:49]} 9. axb7 {[%emt 0:00:23]} Bxb7 {[%emt 0:00:02]} 10. d3 {[%emt 0:00:01]} Rfd8 {[%emt 0:00:10]} 11. Bc4 {[%emt 0:00:29]} e6 {[%emt 0:00:08]} 12. Re1 {[%emt 0:00:42]} h6 {[%emt 0:01:05]} 13. Bb3 {[%emt 0:02:32]} Ng4 {[%emt 0:00:23]} 14. Qe2 {[%emt 0:01:58]} Nge5 {[%emt 0:00:07]} 15. Be3 {[%emt 0:00:51]} Nxf3+ {[%emt 0:00:07]} 16. Qxf3 {[%emt 0:00:03]} Ne5 {[%emt 0:00:17]} 17. Qd1 {[%emt 0:02:36]} Nc6 {[%emt 0:00:01]} 18. Qd2 {[%emt 0:00:07]} Kh7 {[%emt 0:00:31]} 19. Rab1 {[%emt 0:03:07]} Nd4 {[%emt 0:01:06]} 20. Ba2 {[%emt 0:00:22]} Bc6 {[%emt 0:00:36]} 21. Nd1 {[%emt 0:00:38]} Rab8 {[%emt 0:01:02]} 22. b3 {[%emt 0:00:25]} d5 {[%emt 0:02:52]} 23. exd5 {[%emt 0:00:31]} Bxd5 {[%emt 0:00:21]} 24. c3 {[%emt 0:01:27]} Nf5 {[%emt 0:00:28]} 25. Bf4 {[%emt 0:00:35]} Rbc8 {[%emt 0:00:35]} 26. Ne3 {[%emt 0:00:27]} Ne7 {[%emt 0:01:53]} 27. Qc2 {[%emt 0:01:02]} Qb7 {[%emt 0:01:18]} 28. Nxd5 {[%emt 0:00:14]} Nxd5 {[%emt 0:00:05]} 29. Bd2 {[%emt 0:00:01]} Qa6 {[%emt 0:00:23]} 30. Ra1 {[%emt 0:00:09]} Ne7 {[%emt 0:00:22]} 31. b4 {[%emt 0:00:19]} Qxd3 {[%emt 0:00:16]} 32. Qxd3 {[%emt 0:00:03]} Rxd3 {[%emt 0:00:01]} 33. Be3 {[%emt 0:00:18]} cxb4 {[%emt 0:00:34]} 34. Bb1 {[%emt 0:00:07]} Rd7 {[%emt 0:00:36]} 35. Rxa7 {[%emt 0:00:08]} Rxa7 {[%emt 0:00:03]} 36. Bxa7 {[%emt 0:00:01]} bxc3 {[%emt 0:00:10]} 37. Rc1 {[%emt 0:00:16]} Nd5 {[%emt 0:00:18]} 38. Kf1 {[%emt 0:00:06]} h5 {[%emt 0:00:37]} 39. Be3 {[%emt 0:00:16]} Bf8 {[%emt 0:01:22]} 40. Bd4 {[%emt 0:00:16]} Bh6 {[%emt 0:00:30]} 41. Rc2 {[%emt 0:00:10]} Rb8 {[%emt 0:00:05]} 42. Ba2 {[%emt 0:00:10]} Nb4 {[%emt 0:00:01]} 43. Rxc3 {[%emt 0:00:05]} Nxa2 {[%emt 0:00:02]} 44. Rc7 {[%emt 0:00:06]} Kg8 {[%emt 0:00:05]} 0-1

[Event "RUS-chT Rapid Men 2018"]
[Site "Sochi"]
[Date "2018.10.08"]
[Round "5"]
[White "Kharitonov, Egor"]
[Black "Tenikashvili, Georgij"]
[Result "0-1"]
[ECO "D20"]
[WhiteElo "2387"]
[BlackElo "2361"]
[Annotator "NA"]
[PlyCount "82"]
[EventDate "2018.10.05"]
[EventType "swiss"]
[EventCountry "RUS"]
[SourceTitle "playchess.com"]
[Source "ChessBase"]
[SourceQuality "1"]
[TimeControl "900+10"]

1. d4 {[%emt 0:00:00]} d5 {[%emt 0:00:00]} 2. c4 {[%emt 0:00:00]} dxc4 {[%emt 0:00:00]} 3. e3 {[%emt 0:00:00]} e6 {[%emt 0:00:00]} 4. Bxc4 {[%emt 0:00:00]} Nf6 {[%emt 0:00:00]} 5. Nf3 {[%emt 0:00:00]} a6 {[%emt 0:00:03]} 6. O-O {[%emt 0:00:00]} c5 {[%emt 0:00:03]} 7. b3 {[%emt 0:00:03]} Be7 {[%emt 0:00:29]} 8. Bb2 {[%emt 0:00:02]} O-O {[%emt 0:00:35]} 9. Nbd2 {[%emt 0:00:03]} Nbd7 {[%emt 0:01:32]} 10. Rc1 {[%emt 0:00:13]} b5 {[%emt 0:00:06]} 11. Be2 {[%emt 0:00:05]} Bb7 {[%emt 0:00:06]} 12. a4 {[%emt 0:00:02]} Qb6 {[%emt 0:00:24]} 13. Ba3 {[%emt 0:00:41]} Rfc8 {[%emt 0:01:37]} 14. dxc5 {[%emt 0:01:30]} Bxc5 {[%emt 0:01:55]} 15. Bxc5 {[%emt 0:01:33]} Rxc5 {[%emt 0:02:04]} 16. Nd4 {[%emt 0:00:13]} Rxc1 {[%emt 0:01:42]} 17. Qxc1 {[%emt 0:00:04]} Rc8 {[%emt 0:00:05]} 18. Qb1 {[%emt 0:02:17]} b4 {[%emt 0:02:54]} 19. Nc4 {[%emt 0:00:04]} Qc5 {[%emt 0:00:13]} 20. Bf3 {[%emt 0:03:01]} Bd5 {[%emt 0:01:24]} 21. Be2 {[%emt 0:01:24]} Ne4 {[%emt 0:00:52]} 22. Qb2 {[%emt 0:02:51]} Nc3 {[%emt 0:00:24]} 23. Bd3 {[%emt 0:00:02]} e5 {[%emt 0:00:39]} 24. Nf5 {[%emt 0:00:45]} e4 {[%emt 0:00:11]} 25. Ncd6 {[%emt 0:00:15]} Rb8 {[%emt 0:01:02]} 26. Bxa6 {[%emt 0:00:30]} Be6 {[%emt 0:00:12]} 27. Ne7+ {[%emt 0:01:59]} Kf8 {[%emt 0:00:07]} 28. Nec8 {[%emt 0:00:05]} Qc7 {[%emt 0:00:29]} 29. Rc1 {[%emt 0:00:28]} Nc5 {[%emt 0:00:03]} 30. Nb5 {[%emt 0:01:20]} Qe5 {[%emt 0:00:27]} 31. Nxc3 {[%emt 0:00:14]} bxc3 {[%emt 0:00:02]} 32. Qxc3 {[%emt 0:00:03]} Qxc3 {[%emt 0:00:04]} 33. Rxc3 {[%emt 0:00:01]} Nxa6 {[%emt 0:00:04]} 34. Nd6 {[%emt 0:00:03]} Rd8 {[%emt 0:00:34]} 35. Rc6 {[%emt 0:00:14]} Nb4 {[%emt 0:00:05]} 36. Rb6 {[%emt 0:00:03]} Nd5 {[%emt 0:00:03]} 37. Ra6 {[%emt 0:00:04]} Ke7 {[%emt 0:00:22]} 38. Nxe4 {[%emt 0:00:04]} Nc7 {[%emt 0:00:06]} 39. Rxe6+ {[%emt 0:00:18]} Nxe6 {[%emt 0:00:05]} 40. f4 {[%emt 0:00:01]} Rd3 {[%emt 0:00:07]} 41. b4 {[%emt 0:00:02]} Rxe3 {[%emt 0:00:07]} 0-1

[Event "RUS-chT Rapid Men 2018"]
[Site "Sochi"]
[Date "2018.10.08"]
[Round "5"]
[White "Derjabin, Ilja"]
[Black "Belyakov, Bogdan"]
[Result "1-0"]
[ECO "D20"]
[WhiteElo "2345"]
[BlackElo "2458"]
[Annotator "ChessBase"]
[PlyCount "127"]
[EventDate "2018.10.05"]
[EventType "swiss"]
[EventCountry "RUS"]
[SourceTitle "playchess.com"]
[Source "ChessBase"]
[SourceQuality "1"]
[TimeControl "900+10"]

1. d4 {[%emt 0:00:00]} d5 {[%emt 0:00:00]} 2. c4 {[%emt 0:00:00]} dxc4 {[%emt 0:00:00]} 3. e3 {[%emt 0:00:00]} e5 {[%emt 0:00:10]} 4. Bxc4 {[%emt 0:00:02]} Nc6 {[%emt 0:00:21]} 5. d5 {[%emt 0:00:25]} Na5 {[%emt 0:00:08]} 6. Bb5+ {[%emt 0:01:09]} c6 {[%emt 0:00:02]} 7. dxc6 {[%emt 0:01:02]} Qxd1+ {[%emt 0:00:04]} 8. Kxd1 {[%emt 0:00:02]} Nxc6 {[%emt 0:00:03]} 9. Nf3 {[%emt 0:00:13]} f6 {[%emt 0:00:07]} 10. Nc3 {[%emt 0:00:15]} Be6 {[%emt 0:00:07]} 11. b3 {[%emt 0:00:57]} O-O-O+ {[%emt 0:00:21]} 12. Ke2 {[%emt 0:00:02]} Nb4 {[%emt 0:00:21]} 13. Rd1 {[%emt 0:02:32]} Rxd1 {[%emt 0:00:16]} 14. Kxd1 {[%emt 0:00:56]} a6 {[%emt 0:00:15]} 15. Bc4 {[%emt 0:00:21]} Bxc4 {[%emt 0:00:19]} 16. bxc4 {[%emt 0:00:01]} Nc6 {[%emt 0:04:32]} 17. Na4 {[%emt 0:01:23]} Bd6 {[%emt 0:01:20]} 18. e4 {[%emt 0:00:49]} Bc7 {[%emt 0:01:48]} 19. Be3 {[%emt 0:00:09]} Nge7 {[%emt 0:00:02]} 20. Ke2 {[%emt 0:00:52]} Rd8 {[%emt 0:00:43]} 21. Rd1 {[%emt 0:00:07]} Rxd1 {[%emt 0:00:11]} 22. Kxd1 {[%emt 0:00:02]} Nd8 {[%emt 0:00:59]} 23. Nb6+ {[%emt 0:01:04]} Bxb6 {[%emt 0:00:05]} 24. Bxb6 {[%emt 0:00:02]} Ne6 {[%emt 0:00:04]} 25. Nd2 {[%emt 0:00:46]} Kd7 {[%emt 0:00:29]} 26. Nb3 {[%emt 0:00:08]} Kc6 {[%emt 0:01:48]} 27. Be3 {[%emt 0:00:02]} Nc8 {[%emt 0:00:44]} 28. Kc2 {[%emt 0:00:21]} Nd6 {[%emt 0:00:29]} 29. Kd3 {[%emt 0:00:04]} b6 {[%emt 0:00:18]} 30. a4 {[%emt 0:00:15]} a5 {[%emt 0:00:03]} 31. f3 {[%emt 0:00:14]} h5 {[%emt 0:00:24]} 32. c5 {[%emt 0:01:01]} bxc5 {[%emt 0:00:16]} 33. Nxa5+ {[%emt 0:00:02]} Kb6 {[%emt 0:00:01]} 34. Nc4+ {[%emt 0:00:07]} Nxc4 {[%emt 0:00:11]} 35. Kxc4 Kc6 36. a5 {[%emt 0:00:39]} h4 {[%emt 0:00:25]} 37. h3 {[%emt 0:00:10]} g6 {[%emt 0:00:41]} 38. a6 {[%emt 0:00:08]} Kb6 {[%emt 0:00:03]} 39. Bxc5+ {[%emt 0:01:10]} Kxa6 {[%emt 0:00:02]} 40. Be3 {[%emt 0:00:02]} Nc7 {[%emt 0:00:32]} 41. Kc5 {[%emt 0:00:06]} Nb5 {[%emt 0:00:01]} 42. Kd5 {[%emt 0:00:18]} Nc7+ {[%emt 0:00:59]} 43. Kd6 {[%emt 0:00:08]} Kb7 {[%emt 0:00:01]} 44. Ke7 {[%emt 0:00:07]} f5 {[%emt 0:00:01]} 45. Kf6 {[%emt 0:00:10]} fxe4 {[%emt 0:00:01]} 46. fxe4 {[%emt 0:00:02]} Nb5 {[%emt 0:00:02]} 47. Kxe5 {[%emt 0:00:08]} Kc6 {[%emt 0:00:09]} 48. Bg5 {[%emt 0:00:09]} Nd6 {[%emt 0:00:41]} 49. Bxh4 {[%emt 0:00:07]} Kd7 {[%emt 0:00:01]} 50. Be1 {[%emt 0:00:29]} Nc4+ {[%emt 0:00:32]} 51. Kf6 {[%emt 0:00:11]} Ne3 {[%emt 0:00:02]} 52. g4 {[%emt 0:00:51]} Nc2 {[%emt 0:00:19]} 53. Bf2 {[%emt 0:00:06]} Nb4 {[%emt 0:00:03]} 54. Kxg6 {[%emt 0:00:15]} Ke6 {[%emt 0:00:01]} 55. h4 {[%emt 0:00:08]} Nc6 {[%emt 0:00:02]} 56. Bg3 {[%emt 0:00:10]} Ke7 {[%emt 0:00:02]} 57. h5 {[%emt 0:00:03]} Kf8 {[%emt 0:00:01]} 58. h6 {[%emt 0:00:06]} Kg8 {[%emt 0:00:02]} 59. Kf6 {[%emt 0:00:12]} Kh7 {[%emt 0:00:06]} 60. g5 {[%emt 0:00:03]} Nb4 {[%emt 0:00:08]} 61. Bf4 {[%emt 0:00:08]} Nd3 {[%emt 0:00:01]} 62. Be3 {[%emt 0:00:01]} Nb4 {[%emt 0:00:03]} 63. g6+ {[%emt 0:00:03]} Kh8 {[%emt 0:00:01]} 64. g7+ {[%emt 0:00:17]} 1-0

[Event "RUS-chT Rapid Men 2018"]
[Site "Sochi"]
[Date "2018.10.08"]
[Round "5"]
[White "Remizov, Yaroslav"]
[Black "Khanin, Semen"]
[Result "0-1"]
[ECO "C47"]
[WhiteElo "2315"]
[BlackElo "2510"]
[Annotator "RC"]
[PlyCount "114"]
[EventDate "2018.10.05"]
[EventType "swiss"]
[EventCountry "RUS"]
[SourceTitle "playchess.com"]
[Source "ChessBase"]
[SourceQuality "1"]
[TimeControl "900+10"]

1. e4 {[%emt 0:00:00]} e5 {[%emt 0:00:00]} 2. Nf3 {[%emt 0:00:00]} Nc6 {[%emt 0:00:00]} 3. Nc3 {[%emt 0:00:00]} Nf6 {[%emt 0:00:03]} 4. Be2 {[%emt 0:00:00]} Bb4 {[%emt 0:00:46]} 5. Nd5 {[%emt 0:00:00]} Bc5 {[%emt 0:00:02]} 6. d3 {[%emt 0:01:20]} h6 {[%emt 0:00:02]} 7. c3 {[%emt 0:00:41]} a6 {[%emt 0:01:18]} 8. d4 {[%emt 0:02:18]} Ba7 {[%emt 0:00:11]} 9. dxe5 {[%emt 0:01:45]} Nxe4 {[%emt 0:00:04]} 10. Qc2 {[%emt 0:00:12]} Nxf2 {[%emt 0:00:59]} 11. Rf1 {[%emt 0:00:01]} d6 {[%emt 0:00:27]} 12. Rxf2 {[%emt 0:04:52]} Bxf2+ {[%emt 0:00:02]} 13. Kxf2 {[%emt 0:00:00]} dxe5 {[%emt 0:00:02]} 14. Nb4 {[%emt 0:00:21]} Nxb4 15. cxb4 O-O {[%emt 0:01:02]} 16. Be3 {[%emt 0:00:17]} Re8 {[%emt 0:02:15]} 17. Rd1 {[%emt 0:01:20]} Qe7 {[%emt 0:00:01]} 18. Qe4 {[%emt 0:01:25]} Qf6 {[%emt 0:01:10]} 19. Bd3 {[%emt 0:01:36]} g6 {[%emt 0:00:51]} 20. Bxh6 {[%emt 0:00:01]} Bf5 {[%emt 0:00:05]} 21. Qh4 {[%emt 0:00:01]} Qxh4+ {[%emt 0:00:26]} 22. Nxh4 {[%emt 0:00:01]} Bxd3 {[%emt 0:00:29]} 23. Rxd3 {[%emt 0:00:00]} Rad8 {[%emt 0:00:02]} 24. Rxd8 {[%emt 0:00:15]} Rxd8 {[%emt 0:00:01]} 25. Nf3 {[%emt 0:00:21]} f6 {[%emt 0:00:09]} 26. Be3 {[%emt 0:00:12]} Rd1 {[%emt 0:00:28]} 27. Nd2 {[%emt 0:00:59]} Ra1 {[%emt 0:00:57]} 28. a3 {[%emt 0:01:20]} Ra2 {[%emt 0:00:02]} 29. b3 {[%emt 0:00:11]} Rxa3 {[%emt 0:00:02]} 30. Ke2 {[%emt 0:00:03]} Kf7 {[%emt 0:00:13]} 31. Kd3 {[%emt 0:00:16]} Ra1 {[%emt 0:00:11]} 32. Ne4 {[%emt 0:00:20]} f5 {[%emt 0:00:07]} 33. Nc3 {[%emt 0:00:10]} Rh1 {[%emt 0:00:25]} 34. h3 {[%emt 0:00:08]} Rh2 {[%emt 0:00:01]} 35. b5 {[%emt 0:00:06]} Rxg2 {[%emt 0:00:07]} 36. bxa6 {[%emt 0:00:01]} bxa6 {[%emt 0:00:02]} 37. Nd5 {[%emt 0:00:04]} Rg3 {[%emt 0:00:05]} 38. Ke2 {[%emt 0:00:23]} Rxh3 {[%emt 0:00:02]} 39. Nxc7 {[%emt 0:00:02]} f4 {[%emt 0:00:02]} 40. Bd2 {[%emt 0:00:08]} Rxb3 {[%emt 0:00:03]} 41. Nxa6 {[%emt 0:00:01]} Kf6 {[%emt 0:00:08]} 42. Nc5 {[%emt 0:00:02]} Ra3 {[%emt 0:00:09]} 43. Bb4 {[%emt 0:00:27]} Re3+ {[%emt 0:00:13]} 44. Kf2 {[%emt 0:00:00]} g5 {[%emt 0:00:05]} 45. Bd2 {[%emt 0:00:09]} Ra3 {[%emt 0:00:06]} 46. Bc1 {[%emt 0:00:04]} Ra2+ {[%emt 0:00:02]} 47. Ke1 {[%emt 0:00:17]} g4 {[%emt 0:00:05]} 48. Ne4+ {[%emt 0:00:05]} Kf5 {[%emt 0:00:05]} 49. Nd6+ {[%emt 0:00:01]} Ke6 {[%emt 0:00:01]} 50. Ne4 {[%emt 0:00:02]} Ra1 {[%emt 0:00:04]} 51. Kd2 {[%emt 0:00:34]} g3 {[%emt 0:00:02]} 52. Kc2 {[%emt 0:00:32]} g2 {[%emt 0:00:39]} 53. Ng5+ {[%emt 0:00:02]} Kf5 {[%emt 0:00:02]} 54. Nf3 {[%emt 0:00:08]} Kg4 {[%emt 0:00:16]} 55. Ng1 {[%emt 0:00:24]} Rxc1+ {[%emt 0:00:12]} 56. Kxc1 {[%emt 0:00:01]} f3 {[%emt 0:00:01]} 57. Kd2 {[%emt 0:00:18]} f2 {[%emt 0:00:02]} 0-1